[Event "World Senior chT-50 2019"]
[Site "Rhodes"]
[Date "2019.04.18"]
[Round "3.11"]
[White "Movsziszian, Karen"]
[Black "Kaspi, Alexander"]
[Result "1/2-1/2"]
[ECO "C95"]
[WhiteElo "2485"]
[BlackElo "2452"]
[PlyCount "98"]
[EventDate "2019.04.16"]
[EventType "team-tourn"]
[EventCountry "GRE"]
[TimeControl "40/5400+30:1800+30"]

1. e4 {[%emt 0:00:00]} e5 {[%emt 0:00:04]} 2. Nf3 {[%emt 0:00:00]} Nc6 {[%emt 0:00:10]} 3. Bb5 {[%emt 0:00:00]} a6 {[%emt 0:00:15]} 4. Ba4 {[%emt 0:00:03]} Nf6 {[%emt 0:00:08]} 5. O-O {[%emt 0:00:08]} Be7 {[%emt 0:00:08]} 6. Re1 {[%emt 0:00:07]} b5 {[%emt 0:01:16]} 7. Bb3 {[%emt 0:00:17]} d6 {[%emt 0:00:04]} 8. c3 {[%emt 0:00:06]} O-O {[%emt 0:00:07]} 9. h3 {[%emt 0:00:04]} Nb8 {[%emt 0:00:16]} 10. d4 {[%emt 0:00:08]} Nbd7 {[%emt 0:00:09]} 11. Nbd2 {[%emt 0:00:13]} c5 {[%emt 0:00:15]} 12. Nf1 {[%emt 0:02:08]} Re8 {[%emt 0:03:38]} 13. Ng3 {[%emt 0:00:18]} Bf8 {[%emt 0:01:04]} 14. Ng5 {[%emt 0:09:11]} c4 {[%emt 0:02:23]} 15. Bc2 {[%emt 0:01:20]} h6 {[%emt 0:05:06]} 16. Nf3 {[%emt 0:00:05]} Qc7 {[%emt 0:18:01]} 17. Be3 {[%emt 0:12:15]} Bb7 {[%emt 0:11:44]} 18. d5 {[%emt 0:03:00]} Nc5 {[%emt 0:05:20]} 19. Qd2 {[%emt 0:00:59]} Bc8 {[%emt 0:07:46]} 20. b4 {[%emt 0:05:42]} cxb3 {[%emt 0:00:17]} 21. axb3 {[%emt 0:00:05]} Bd7 {[%emt 0:00:23]} 22. c4 {[%emt 0:05:09]} bxc4 {[%emt 0:12:57]} 23. bxc4 {[%emt 0:00:09]} a5 {[%emt 0:06:00]} 24. Ra3 {[%emt 0:00:26]} Ra6 {[%emt 0:00:55]} 25. Rea1 {[%emt 0:00:32]} Rea8 {[%emt 0:03:59]} 26. Qd1 {[%emt 0:00:32]} Be8 {[%emt 0:01:57]} 27. Nd2 {[%emt 0:00:29]} Nfd7 {[%emt 0:04:55]} 28. Ne2 {[%emt 0:01:58]} Be7 {[%emt 0:01:02]} 29. Nc3 {[%emt 0:00:49]} Bg5 {[%emt 0:06:26]} 30. Bxg5 {[%emt 0:04:44]} hxg5 {[%emt 0:00:01]} 31. Qe2 {[%emt 0:01:01]} Qd8 {[%emt 0:01:22]} 32. Qe3 {[%emt 0:00:34]} f6 {[%emt 0:01:31]} 33. Ba4 {[%emt 0:06:37]} Nb6 {[%emt 0:01:48]} 34. Bxe8 {[%emt 0:07:32]} Qxe8 {[%emt 0:00:02]} 35. Rb1 {[%emt 0:00:12]} Nbd7 {[%emt 0:03:47]} 36. Rb5 {[%emt 0:04:23]} Qd8 {[%emt 0:00:15]} 37. Qe2 {[%emt 0:01:41]} Rc8 {[%emt 0:01:45]} 38. Nf1 {[%emt 0:01:24]} g6 {[%emt 0:00:21]} 39. Ne3 {[%emt 0:00:22]} Kg7 {[%emt 0:00:28]} 40. Qc2 {[%emt 0:00:00]} Rca8 {[%emt 0:00:00]} 41. Rb1 {[%emt 0:06:06]} Rb8 {[%emt 0:10:17]} 42. Nb5 {[%emt 0:02:26]} a4 {[%emt 0:01:23]} 43. Nd1 {[%emt 0:02:10]} Nb6 {[%emt 0:08:46]} 44. Rb4 {[%emt 0:01:05]} Raa8 {[%emt 0:00:32]} 45. Qb1 {[%emt 0:06:33]} Na6 {[%emt 0:00:33]} 46. Ne3 {[%emt 0:00:37]} Nxb4 {[%emt 0:00:25]} 47. Qxb4 {[%emt 0:00:05]} Nc8 {[%emt 0:03:29]} 48. Rxa4 {[%emt 0:05:06]} Na7 {[%emt 0:01:42]} 49. Kh2 {[%emt 0:03:46]} Nxb5 {[%emt 0:05:31]} 1/2-1/2

[Event "World Senior chT-50 2019"]
[Site "Rhodes"]
[Date "2019.04.18"]
[Round "3.12"]
[White "Gruenfeld, Yehuda"]
[Black "Petrosian, Arshak B"]
[Result "1-0"]
[ECO "A08"]
[WhiteElo "2428"]
[BlackElo "2470"]
[Annotator "ChessBase"]
[PlyCount "49"]
[EventDate "2019.04.16"]
[EventType "team-tourn"]
[EventCountry "GRE"]
[SourceTitle "playchess.com"]
[Source "ChessBase"]
[SourceQuality "1"]
[WhiteTeam "Israel"]
[BlackTeam "Armenia"]
[WhiteTeamCountry "ISR"]
[BlackTeamCountry "ARM"]
[TimeControl "40/5400+30:1800+30"]

1. g3 {[%emt 0:00:00]} d5 {[%emt 0:00:00]} 2. Nf3 {[%emt 0:00:00]} c5 {[%emt 0:00:00]} 3. Bg2 {[%emt 0:00:14]} Nc6 {[%emt 0:00:00]} 4. O-O {[%emt 0:02:28]} e5 {[%emt 0:00:05]} 5. d3 {[%emt 0:00:09]} f6 {[%emt 0:00:07]} 6. e4 {[%emt 0:04:53]} Be6 {[%emt 0:03:43]} 7. exd5 {[%emt 0:04:34]} Bxd5 {[%emt 0:00:11]} 8. Nc3 {[%emt 0:00:04]} Be6 {[%emt 0:00:07]} 9. Re1 {[%emt 0:00:06]} Qd7 {[%emt 0:00:24]} 10. a3 {[%emt 0:04:38]} Nge7 {[%emt 0:06:47]} 11. b4 {[%emt 0:10:12]} Nd5 {[%emt 0:04:04]} 12. Nxd5 {[%emt 0:04:42]} Bxd5 {[%emt 0:00:07]} 13. c3 {[%emt 0:03:45]} O-O-O {[%emt 0:13:29]} 14. Be3 {[%emt 0:07:10]} Be6 {[%emt 0:03:03]} 15. Qa4 {[%emt 0:02:22]} Qxd3 {[%emt 0:15:32]} 16. b5 {[%emt 0:07:58]} Ne7 {[%emt 0:09:20]} 17. Bxc5 {[%emt 0:16:38]} a6 {[%emt 0:02:55]} 18. Bb6 {[%emt 0:01:51]} Rd7 {[%emt 0:00:52]} 19. c4 {[%emt 0:00:40]} Kb8 {[%emt 0:04:55]} 20. Rad1 {[%emt 0:01:38]} Qc3 {[%emt 0:02:23]} 21. bxa6 {[%emt 0:02:55]} Rxd1 {[%emt 0:10:36]} 22. Rxd1 {[%emt 0:00:02]} Nc8 {[%emt 0:00:12]} 23. axb7 {[%emt 0:03:09]} Nxb6 {[%emt 0:00:38]} 24. Rd8+ {[%emt 0:00:35]} Kxb7 {[%emt 0:00:06]} 25. Nd4+ {[%emt 0:00:49]} 1-0

[Event "World Senior chT-50 2019"]
[Site "Rhodes"]
[Date "2019.04.18"]
[Round "3.13"]
[White "Strutinskaia, Galina"]
[Black "Wallner, Joachim"]
[Result "1/2-1/2"]
[ECO "A11"]
[WhiteElo "2208"]
[BlackElo "2271"]
[Annotator "NA"]
[PlyCount "49"]
[EventDate "2019.04.16"]
[EventType "team-tourn"]
[EventCountry "GRE"]
[SourceTitle "playchess.com"]
[Source "ChessBase"]
[SourceQuality "1"]
[WhiteTeam "Russia"]
[BlackTeam "Austria"]
[WhiteTeamCountry "RUS"]
[BlackTeamCountry "AUT"]
[TimeControl "40/5400+30:1800+30"]

1. c4 {[%emt 0:00:00]} Nf6 {[%emt 0:00:00]} 2. Nf3 {[%emt 0:00:00]} c6 {[%emt 0:00:00]} 3. e3 {[%emt 0:00:10]} d5 {[%emt 0:00:00]} 4. Qc2 {[%emt 0:00:16]} g6 {[%emt 0:03:57]} 5. b3 {[%emt 0:10:53]} Bg7 {[%emt 0:00:54]} 6. Bb2 {[%emt 0:00:05]} O-O {[%emt 0:00:06]} 7. h3 {[%emt 0:01:48]} Re8 {[%emt 0:07:05]} 8. d3 {[%emt 0:01:54]} b6 {[%emt 0:00:32]} 9. Nbd2 {[%emt 0:01:45]} Bb7 {[%emt 0:00:06]} 10. Rc1 {[%emt 0:08:23]} e6 {[%emt 0:05:05]} 11. d4 {[%emt 0:09:31]} Nbd7 {[%emt 0:00:49]} 12. b4 {[%emt 0:02:35]} a5 {[%emt 0:05:44]} 13. a3 {[%emt 0:01:56]} axb4 {[%emt 0:00:17]} 14. axb4 {[%emt 0:00:02]} Qe7 {[%emt 0:00:14]} 15. c5 {[%emt 0:02:39]} bxc5 {[%emt 0:00:06]} 16. bxc5 {[%emt 0:00:07]} Reb8 {[%emt 0:00:11]} 17. Bd3 {[%emt 0:02:35]} Ba6 {[%emt 0:00:47]} 18. Bxa6 {[%emt 0:01:23]} Rxa6 {[%emt 0:00:01]} 19. Ra1 {[%emt 0:00:15]} Rxa1+ {[%emt 0:02:13]} 20. Bxa1 {[%emt 0:00:08]} Ne8 {[%emt 0:03:03]} 21. O-O {[%emt 0:00:13]} Nc7 {[%emt 0:00:09]} 22. Nb3 {[%emt 0:00:36]} Ra8 {[%emt 0:05:14]} 23. Bc3 {[%emt 0:07:41]} e5 {[%emt 0:00:09]} 24. dxe5 {[%emt 0:06:04]} Nxe5 {[%emt 0:01:43]} 25. Nxe5 {[%emt 0:04:49]} 1/2-1/2

[Event "World Senior chT-50 2019"]
[Site "Rhodes"]
[Date "2019.04.18"]
[Round "3.14"]
[White "Denk, Adolf"]
[Black "Grabuzova, Tatiana"]
[Result "0-1"]
[ECO "E18"]
[WhiteElo "2255"]
[BlackElo "2323"]
[Annotator "NA"]
[PlyCount "44"]
[EventDate "2019.04.16"]
[EventType "team-tourn"]
[EventCountry "GRE"]
[SourceTitle "playchess.com"]
[Source "ChessBase"]
[SourceQuality "1"]
[WhiteTeam "Austria"]
[BlackTeam "Russia"]
[WhiteTeamCountry "AUT"]
[BlackTeamCountry "RUS"]
[TimeControl "40/5400+30:1800+30"]

1. d4 {[%emt 0:00:00]} e6 {[%emt 0:00:00]} 2. c4 {[%emt 0:00:00]} b6 {[%emt 0:00:00]} 3. Nf3 {[%emt 0:00:15]} Bb7 {[%emt 0:00:21]} 4. g3 {[%emt 0:00:13]} f5 {[%emt 0:08:26]} 5. Bg2 {[%emt 0:02:20]} Nf6 {[%emt 0:00:14]} 6. O-O {[%emt 0:00:16]} Be7 {[%emt 0:01:00]} 7. Nc3 {[%emt 0:00:39]} Ne4 {[%emt 0:00:25]} 8. Nxe4 {[%emt 0:06:46]} Bxe4 {[%emt 0:00:16]} 9. Ne1 {[%emt 0:00:24]} Bxg2 {[%emt 0:01:14]} 10. Nxg2 {[%emt 0:01:49]} O-O {[%emt 0:04:36]} 11. Qd3 {[%emt 0:04:29]} Bf6 {[%emt 0:22:03]} 12. e4 {[%emt 0:06:45]} fxe4 {[%emt 0:00:42]} 13. Qxe4 {[%emt 0:00:05]} Nc6 {[%emt 0:00:32]} 14. d5 {[%emt 0:00:44]} exd5 {[%emt 0:12:35]} 15. Qxd5+ {[%emt 0:01:31]} Kh8 {[%emt 0:00:43]} 16. Rd1 {[%emt 0:13:52]} Nb4 {[%emt 0:02:26]} 17. Qd2 {[%emt 0:15:23]} a5 {[%emt 0:03:33]} 18. a3 {[%emt 0:01:19]} Na6 {[%emt 0:00:17]} 19. Rb1 {[%emt 0:00:20]} Nc5 {[%emt 0:03:05]} 20. b4 {[%emt 0:04:25]} Ne4 {[%emt 0:01:41]} 21. Qxd7 {[%emt 0:15:19]} Nc3 {[%emt 0:01:05]} 22. Qxd8 {[%emt 0:00:11]} Raxd8 {[%emt 0:03:15]} 0-1

[Event "World Senior chT-50 2019"]
[Site "Rhodes"]
[Date "2019.04.18"]
[Round "3.15"]
[White "Kozlovskaya, Valentina"]
[Black "Druckenthaner, Andreas"]
[Result "0-1"]
[ECO "A87"]
[WhiteElo "2161"]
[BlackElo "2304"]
[PlyCount "140"]
[EventDate "2019.04.16"]
[EventType "team-tourn"]
[EventCountry "GRE"]
[TimeControl "40/5400+30:1800+30"]

1. c4 {[%emt 0:00:00]} f5 {[%emt 0:00:00]} 2. g3 {[%emt 0:00:04]} Nf6 {[%emt 0:00:00]} 3. Bg2 {[%emt 0:00:06]} d6 {[%emt 0:00:05]} 4. d4 {[%emt 0:00:18]} g6 {[%emt 0:00:14]} 5. Nc3 {[%emt 0:00:13]} Bg7 {[%emt 0:00:09]} 6. Nf3 {[%emt 0:00:41]} O-O {[%emt 0:00:08]} 7. O-O {[%emt 0:00:09]} e6 {[%emt 0:00:10]} 8. h3 {[%emt 0:04:30] A87: Dutch Defence: Leningrad System: 5 Nf3} (8. Rb1 a5 9. b3 Nc6 10. d5 Nb4 11. dxe6 Bxe6 12. Nd4 Bc8 13. Bb2 c6 14. e3 Qe7 15. a3 Na6 {½-½ (41) Shankland,S (2666)-Li,R (2577) Saint Louis 2017}) 8... Ne4 $146 {[%emt 0:01:33]} ({Predecessor:} 8... Qe7 9. Kh2 Kh8 10. Bf4 Nbd7 11. Nb5 Ne8 12. Bg5 Ndf6 13. Qc1 Qf7 14. Bh6 Ne4 15. Ng5 Nxg5 16. Qxg5 {½-½ (60) Vakhidov,J (2165)-Igambergenov,A (2001) Teheran 2008}) 9. Nxe4 {[%emt 0:05:07]} fxe4 {[%emt 0:00:15]} 10. Ne1 {[%emt 0:00:25]} d5 {[%emt 0:00:26]} 11. Be3 {[%emt 0:00:47]} Nc6 {[%emt 0:02:26]} 12. Nc2 {[%emt 0:00:41]} Ne7 {[%emt 0:03:13]} 13. g4 {[%emt 0:02:04]} c6 {[%emt 0:14:19]} 14. Qd2 {[%emt 0:00:33]} dxc4 {[%emt 0:00:49]} 15. Bxe4 {[%emt 0:07:00]} Nd5 {[%emt 0:01:21]} 16. Bg5 {[%emt 0:03:00]} Qd6 {[%emt 0:07:37]} 17. e3 {[%emt 0:00:55]} Bd7 {[%emt 0:09:02]} 18. Bg2 {[%emt 0:00:09]} c5 {[%emt 0:17:07]} 19. dxc5 {[%emt 0:04:07]} Qxc5 {[%emt 0:00:29]} 20. Nd4 {[%emt 0:21:27]} Bxd4 {[%emt 0:01:11]} 21. exd4 {[%emt 0:00:23]} Qd6 {[%emt 0:00:25]} 22. f4 {[%emt 0:05:04]} Bc6 {[%emt 0:03:03]} 23. Rae1 {[%emt 0:00:48]} Rae8 {[%emt 0:05:10]} 24. a3 {[%emt 0:01:08]} Nb6 {[%emt 0:06:05]} 25. Bxc6 {[%emt 0:01:59]} Qxc6 {[%emt 0:00:13]} 26. Qe3 {[%emt 0:02:55]} Qd6 {[%emt 0:07:37]} 27. Rf2 {[%emt 0:08:20]} Nd5 {[%emt 0:01:48]} 28. Qe4 {[%emt 0:01:37]} Kg7 {[%emt 0:01:48]} 29. Ref1 {[%emt 0:02:47]} h6 {[%emt 0:02:00]} 30. Bh4 {[%emt 0:00:01]} Rf7 {[%emt 0:02:30]} 31. Bg3 {[%emt 0:05:49]} Ref8 {[%emt 0:02:48]} 32. Rf3 {[%emt 0:02:28]} Nf6 {[%emt 0:01:04]} 33. Qe3 {[%emt 0:00:50]} Nd5 {[%emt 0:00:21]} 34. Qe4 {[%emt 0:00:55]} Nf6 {[%emt 0:00:13]} 35. Qxg6+ {[%emt 0:09:56]} Kxg6 {[%emt 0:00:11]} 36. f5+ {[%emt 0:00:00]} exf5 {[%emt 0:00:18]} 37. Bxd6 {[%emt 0:00:17]} Rd8 {[%emt 0:01:43]} 38. gxf5+ {[%emt 0:01:02]} Kh7 {[%emt 0:02:17]} 39. Be5 {[%emt 0:00:10]} Nd5 {[%emt 0:00:51]} 40. Kh2 {[%emt 0:00:00]} Rg8 {[%emt 0:00:00]} 41. Rg1 {[%emt 0:04:02]} Rxg1 {[%emt 0:02:51]} 42. Kxg1 {[%emt 0:00:01]} Ne7 {[%emt 0:02:00]} 43. f6 {[%emt 0:00:28]} Nd5 {[%emt 0:00:12]} 44. h4 {[%emt 0:01:16]} b5 {[%emt 0:03:16]} 45. h5 {[%emt 0:00:51]} a5 {[%emt 0:00:05]} 46. Kf2 {[%emt 0:03:41]} Kg8 {[%emt 0:01:30]} 47. Ke2 {[%emt 0:01:09]} Kf8 {[%emt 0:00:45]} 48. Kd2 {[%emt 0:01:03]} Ke8 {[%emt 0:00:17]} 49. Kc2 {[%emt 0:01:27]} Kd7 {[%emt 0:03:38]} 50. b3 {[%emt 0:14:18]} c3 {[%emt 0:06:17]} 51. b4 {[%emt 0:00:12]} axb4 {[%emt 0:01:28]} 52. axb4 {[%emt 0:00:01]} Ke6 {[%emt 0:00:19]} 53. Kb3 {[%emt 0:00:49]} Ra7 {[%emt 0:03:43]} 54. Rf1 {[%emt 0:08:24]} Kf7 {[%emt 0:04:42]} 55. Rg1 {[%emt 0:01:55]} Ra4 {[%emt 0:01:19]} 56. Bd6 {[%emt 0:01:14]} Nxf6 {[%emt 0:01:00]} 57. Rg6 {[%emt 0:02:42]} Nd5 {[%emt 0:03:28]} 58. Rxh6 {[%emt 0:00:07]} Ra1 {[%emt 0:00:08]} 59. Rg6 {[%emt 0:01:30]} Rb1+ {[%emt 0:00:14]} 60. Kc2 {[%emt 0:00:53]} Rb2+ {[%emt 0:00:12]} 61. Kc1 {[%emt 0:01:38]} Ne3 {[%emt 0:03:08]} 62. Rg3 {[%emt 0:00:21]} Re2 {[%emt 0:02:00]} 63. Rxe3 $4 {[%emt 0:00:40]} (63. Rf3+ $11 Ke6 64. Bg3) 63... Rxe3 {[%emt 0:00:08]} 64. Kc2 {[%emt 0:00:28]} Ke6 {[%emt 0:01:20]} 65. Bf4 {[%emt 0:01:08]} Rf3 {[%emt 0:00:24]} 66. Bg5 {[%emt 0:01:00]} Kd5 {[%emt 0:00:46]} 67. Kb3 {[%emt 0:01:15]} Kxd4 {[%emt 0:01:34]} 68. h6 {[%emt 0:00:01]} Kd3 {[%emt 0:00:57]} 69. h7 {[%emt 0:00:24]} Rh3 {[%emt 0:00:16]} 70. Bf6 {[%emt 0:02:03]} c2 {[%emt 0:00:14]} 0-1

[Event "World Senior chT-50 2019"]
[Site "Rhodes"]
[Date "2019.04.18"]
[Round "3.16"]
[White "Kranzl, Peter"]
[Black "Titorenko, Natalia I"]
[Result "1/2-1/2"]
[ECO "B22"]
[WhiteElo "2145"]
[BlackElo "2153"]
[PlyCount "172"]
[EventDate "2019.04.16"]
[EventType "team-tourn"]
[EventCountry "GRE"]
[TimeControl "40/5400+30:1800+30"]

1. e4 {[%emt 0:00:00]} c5 {[%emt 0:00:00]} 2. c3 {[%emt 0:00:00]} Nf6 {[%emt 0:00:47]} 3. e5 {[%emt 0:00:08]} Nd5 {[%emt 0:00:07]} 4. d4 {[%emt 0:02:26]} cxd4 {[%emt 0:00:11]} 5. Qxd4 {[%emt 0:00:05]} e6 {[%emt 0:00:19]} 6. Nf3 {[%emt 0:00:05]} Nc6 {[%emt 0:01:01]} 7. Qe4 {[%emt 0:00:22]} d6 {[%emt 0:05:06]} 8. Nbd2 {[%emt 0:01:53]} Nxe5 {[%emt 0:07:25]} 9. Nxe5 {[%emt 0:00:26]} dxe5 {[%emt 0:00:01]} 10. Qxe5 {[%emt 0:01:44]} Bd7 {[%emt 0:06:47]} 11. Be2 {[%emt 0:11:42]} Qc7 {[%emt 0:08:03]} 12. Qxc7 {[%emt 0:01:56]} Nxc7 {[%emt 0:00:02]} 13. Bf3 {[%emt 0:00:52]} O-O-O {[%emt 0:06:35]} 14. O-O {[%emt 0:02:08]} Nd5 {[%emt 0:09:19]} 15. Bxd5 {[%emt 0:13:05]} exd5 {[%emt 0:00:01]} 16. Nb3 {[%emt 0:00:20]} Bd6 {[%emt 0:12:17]} 17. Be3 {[%emt 0:03:00]} Kb8 {[%emt 0:01:15]} 18. Rfe1 {[%emt 0:12:11]} Rhe8 {[%emt 0:01:18]} 19. Bc5 {[%emt 0:05:14]} Bc7 {[%emt 0:01:34]} 20. Nd4 {[%emt 0:02:51]} b6 {[%emt 0:10:13]} 21. Be7 {[%emt 0:02:22]} Rc8 {[%emt 0:00:01]} 22. g3 {[%emt 0:07:33]} Kb7 {[%emt 0:01:40]} 23. Bg5 {[%emt 0:11:19]} Be5 {[%emt 0:01:32]} 24. Nf3 {[%emt 0:02:46]} Bc7 {[%emt 0:00:51]} 25. Bd2 {[%emt 0:03:01]} f6 {[%emt 0:02:48]} 26. Re3 {[%emt 0:01:52]} Rxe3 {[%emt 0:02:36]} 27. Bxe3 {[%emt 0:00:20]} Bg4 {[%emt 0:01:49]} 28. Nd2 {[%emt 0:03:22]} Bd6 {[%emt 0:02:58]} 29. f3 {[%emt 0:01:03]} Bd7 {[%emt 0:01:00]} 30. Kf2 {[%emt 0:01:41]} Re8 {[%emt 0:04:41]} 31. Nb3 {[%emt 0:01:34]} Be5 {[%emt 0:06:47]} 32. Rd1 {[%emt 0:01:34]} Bc6 {[%emt 0:01:09]} 33. Bd4 {[%emt 0:02:32]} Bc7 {[%emt 0:01:25]} 34. Be3 {[%emt 0:01:27]} Be5 {[%emt 0:00:41]} 35. Rd2 {[%emt 0:01:39]} Re7 {[%emt 0:00:34]} 36. Bd4 {[%emt 0:00:57]} Bc7 {[%emt 0:00:15]} 37. Be3 {[%emt 0:00:35]} Be5 {[%emt 0:00:03]} 38. f4 {[%emt 0:00:52]} Bc7 {[%emt 0:00:03]} 39. Nd4 {[%emt 0:00:12]} Bd7 {[%emt 0:00:31]} 40. Nb3 {[%emt 0:00:26]} Bc6 {[%emt 0:00:46]} 41. Nd4 {[%emt 0:00:06]} Bd7 {[%emt 0:00:05]} 42. Nc2 {[%emt 0:06:20]} Bc6 {[%emt 0:01:21]} 43. Nb4 {[%emt 0:05:33]} Rd7 {[%emt 0:00:04]} 44. Bd4 {[%emt 0:03:41]} a5 {[%emt 0:12:13]} 45. Nc2 {[%emt 0:01:50]} Bd6 {[%emt 0:06:08]} 46. Ne3 {[%emt 0:06:28]} Bc5 {[%emt 0:00:57]} 47. Kf3 {[%emt 0:00:51]} Kc7 {[%emt 0:02:14]} 48. h4 {[%emt 0:01:06]} h5 {[%emt 0:01:30]} 49. Nf5 {[%emt 0:03:10]} Rf7 {[%emt 0:04:54]} 50. Kf2 {[%emt 0:01:51]} g6 {[%emt 0:06:50]} 51. Ne3 {[%emt 0:00:08]} Kd6 {[%emt 0:01:25]} 52. Bxc5+ {[%emt 0:00:51]} Kxc5 {[%emt 0:00:47]} 53. Nc2 {[%emt 0:01:04]} Re7 {[%emt 0:00:34]} 54. Re2 {[%emt 0:02:20]} Rxe2+ {[%emt 0:00:08]} 55. Kxe2 {[%emt 0:00:01]} Bd7 {[%emt 0:00:25]} 56. Nd4 {[%emt 0:00:47]} b5 {[%emt 0:00:41]} 57. a3 {[%emt 0:01:07]} Kc4 {[%emt 0:01:32]} 58. Kd2 {[%emt 0:00:22]} b4 {[%emt 0:00:09]} 59. axb4 {[%emt 0:01:04]} axb4 {[%emt 0:00:00]} 60. b3+ {[%emt 0:01:11]} Kc5 {[%emt 0:00:14]} 61. Kd3 {[%emt 0:00:34]} Bc8 {[%emt 0:00:27]} 62. Kd2 {[%emt 0:00:25]} Bh3 {[%emt 0:01:26]} 63. Nc2 {[%emt 0:00:04]} bxc3+ {[%emt 0:00:19]} 64. Kxc3 {[%emt 0:00:01]} Bf5 {[%emt 0:01:51]} 65. Nd4 {[%emt 0:00:03]} Bd7 {[%emt 0:00:19]} 66. b4+ {[%emt 0:00:27]} Kd6 {[%emt 0:00:36]} 67. Nc2 {[%emt 0:00:20]} Bb5 {[%emt 0:00:31]} 68. Kd4 {[%emt 0:00:14]} Bd7 {[%emt 0:00:31]} 69. Ne3 {[%emt 0:01:19]} Bc6 {[%emt 0:00:40]} 70. Nd1 {[%emt 0:00:44]} Ke6 {[%emt 0:00:25]} 71. Kc5 {[%emt 0:00:37]} Ba8 {[%emt 0:00:28]} 72. Ne3 {[%emt 0:00:15]} Bb7 {[%emt 0:00:15]} 73. b5 {[%emt 0:00:39]} Ba8 {[%emt 0:00:06]} 74. Nd1 {[%emt 0:01:26]} Kf5 {[%emt 0:00:05]} 75. Nf2 {[%emt 0:00:05]} g5 {[%emt 0:00:29]} 76. fxg5 {[%emt 0:00:25]} fxg5 {[%emt 0:00:01]} 77. hxg5 {[%emt 0:00:18]} Kxg5 {[%emt 0:00:00]} 78. Kd4 {[%emt 0:01:47]} h4 {[%emt 0:00:21]} 79. gxh4+ {[%emt 0:00:10]} Kxh4 {[%emt 0:00:01]} 80. Nd3 {[%emt 0:00:17]} Kg5 {[%emt 0:00:20]} 81. Nb4 {[%emt 0:00:47]} Kf5 {[%emt 0:00:53]} 82. Nxd5 {[%emt 0:00:23]} Bb7 {[%emt 0:00:10]} 83. Nb4 {[%emt 0:00:57]} Ke6 {[%emt 0:00:19]} 84. Kc5 {[%emt 0:00:12]} Kd7 {[%emt 0:00:29]} 85. Kb6 {[%emt 0:00:21]} Bg2 {[%emt 0:01:45]} 86. Nd3 {[%emt 0:00:54]} Bf1 {[%emt 0:00:41]} 1/2-1/2

[Event "World Senior chT-50 2019"]
[Site "Rhodes"]
[Date "2019.04.18"]
[Round "3.17"]
[White "Mitrandzas, Athanasios"]
[Black "Ross, David"]
[Result "0-1"]
[ECO "A13"]
[WhiteElo "2055"]
[BlackElo "2312"]
[PlyCount "84"]
[EventDate "2019.04.16"]
[EventType "team-tourn"]
[EventCountry "GRE"]
[TimeControl "40/5400+30:1800+30"]

1. c4 {[%emt 0:00:00]} e6 {[%emt 0:00:00]} 2. g3 {[%emt 0:00:24]} d5 {[%emt 0:00:00]} 3. Bg2 {[%emt 0:00:22]} Nf6 {[%emt 0:00:44]} 4. Nf3 {[%emt 0:00:15]} Nc6 {[%emt 0:02:36]} 5. O-O {[%emt 0:02:01]} Be7 {[%emt 0:01:17]} 6. b3 {[%emt 0:01:54]} a5 {[%emt 0:00:09]} 7. Nc3 {[%emt 0:02:44]} O-O {[%emt 0:01:26]} 8. Bb2 {[%emt 0:00:34]} d4 {[%emt 0:18:57]} 9. Nb5 {[%emt 0:05:34]} e5 {[%emt 0:01:51]} 10. e3 {[%emt 0:09:41]} Bc5 {[%emt 0:04:44]} 11. exd4 {[%emt 0:00:34]} exd4 {[%emt 0:00:50]} 12. Re1 {[%emt 0:00:30]} Bg4 {[%emt 0:09:19]} 13. h3 {[%emt 0:03:17]} Bh5 {[%emt 0:01:03]} 14. g4 {[%emt 0:01:43]} Bg6 {[%emt 0:00:15]} 15. Ne5 {[%emt 0:00:40]} Nxe5 {[%emt 0:04:53]} 16. Rxe5 {[%emt 0:00:11]} Nd7 {[%emt 0:00:05]} 17. Re1 {[%emt 0:04:27]} c6 {[%emt 0:03:51]} 18. Nxd4 {[%emt 0:00:38]} Qf6 {[%emt 0:00:28]} 19. Nf3 {[%emt 0:09:26]} Qxb2 {[%emt 0:00:11]} 20. d4 {[%emt 0:00:07]} Ba3 {[%emt 0:04:00]} 21. Re2 {[%emt 0:14:18]} Qc3 {[%emt 0:00:03]} 22. Re3 {[%emt 0:00:11]} Qb4 {[%emt 0:05:10]} 23. Qe2 {[%emt 0:01:07]} Rfd8 {[%emt 0:04:39]} 24. Rd1 {[%emt 0:03:18]} Nf8 {[%emt 0:00:40]} 25. d5 {[%emt 0:11:58]} cxd5 {[%emt 0:01:34]} 26. cxd5 {[%emt 0:00:16]} Qd6 {[%emt 0:00:35]} 27. Qb5 {[%emt 0:10:09]} Bc5 {[%emt 0:01:44]} 28. Ree1 {[%emt 0:06:17]} b6 {[%emt 0:00:37]} 29. Nd2 {[%emt 0:05:14]} Qf4 {[%emt 0:00:19]} 30. Re2 {[%emt 0:01:53]} Qd4 {[%emt 0:02:59]} 31. Qc6 {[%emt 0:03:33]} Rac8 {[%emt 0:00:49]} 32. Qb7 {[%emt 0:00:33]} h5 {[%emt 0:05:24]} 33. Rde1 {[%emt 0:00:57]} hxg4 {[%emt 0:00:29]} 34. hxg4 {[%emt 0:00:05]} Qxg4 {[%emt 0:00:35]} 35. Nf3 {[%emt 0:00:06]} Qd7 {[%emt 0:02:16]} 36. Qa6 {[%emt 0:00:28]} Bh5 {[%emt 0:04:28]} 37. Re5 {[%emt 0:00:48]} Bxf3 {[%emt 0:00:54]} 38. Bxf3 {[%emt 0:00:09]} Ng6 {[%emt 0:02:31]} 39. Rh5 {[%emt 0:00:38]} Re8 {[%emt 0:01:43]} 40. Rf1 {[%emt 0:00:00]} Ne5 {[%emt 0:00:00]} 41. Bg2 {[%emt 0:06:11]} Qg4 {[%emt 0:03:25]} 42. Rh3 {[%emt 0:00:42]} Ng6 {[%emt 0:00:39]} 0-1